[Event "Krakow Championship-B 2022"]
[Site "Krakow"]
[Date "2022.07.02"]
[Round "9.1"]
[White "Garsky, Vladyslav"]
[Black "Skomial, Mateusz"]
[Result "1/2-1/2"]
[ECO "A05"]
[WhiteElo "1860"]
[BlackElo "2063"]
[Annotator "NA RC"]
[PlyCount "88"]
[EventDate "2022.06.25"]
[EventType "swiss"]
[EventCountry "POL"]
[SourceTitle "playchess.com"]
[Source "ChessBase"]
[SourceQuality "1"]
[TimeControl "40/5400+30:1800+30"]

1. Nf3 {[%emt 0:00:05]} Nf6 {[%emt 0:00:08]} 2. g3 {[%emt 0:00:22]} d5 {[%emt 0:00:13]} 3. Bg2 {[%emt 0:00:06]} e6 {[%emt 0:01:00]} 4. O-O {[%emt 0:00:55]} Be7 {[%emt 0:00:12]} 5. c4 {[%emt 0:00:09]} O-O {[%emt 0:00:37]} 6. d4 {[%emt 0:00:07]} dxc4 {[%emt 0:02:17]} 7. Qa4 {[%emt 0:07:00]} a6 {[%emt 0:04:02]} 8. Qxc4 {[%emt 0:01:12]} b5 {[%emt 0:00:07]} 9. Qc2 {[%emt 0:00:05]} Bb7 {[%emt 0:00:12]} 10. Bd2 {[%emt 0:09:46]} Nc6 {[%emt 0:12:08]} 11. e3 {[%emt 0:06:40]} Nb4 {[%emt 0:02:29]} 12. Bxb4 {[%emt 0:00:28]} Bxb4 {[%emt 0:00:01]} 13. Ne5 {[%emt 0:00:13]} Bxg2 {[%emt 0:01:31]} 14. Kxg2 {[%emt 0:00:03]} Qd5+ $1 {[%emt 0:05:39]} 15. f3 {[%emt 0:01:41]} Qb7 {[%emt 0:20:27]} 16. Qc6 {[%emt 0:04:23]} Qb6 {[%emt 0:01:39]} 17. Rc1 $14 {[%emt 0:02:25]} Bd6 {[%emt 0:01:11]} 18. Nd3 {[%emt 0:01:17]} Rac8 {[%emt 0:07:08]} 19. Nd2 {[%emt 0:03:54]} Nd5 {[%emt 0:00:58]} 20. Kf2 {[%emt 0:01:02]} Qa7 {[%emt 0:00:42]} 21. Ne4 {[%emt 0:02:27]} Ne7 {[%emt 0:00:23]} 22. Qc2 {[%emt 0:00:16]} Rfd8 {[%emt 0:00:38]} 23. Qb3 {[%emt 0:01:37]} Nd5 {[%emt 0:05:02]} 24. Rc6 {[%emt 0:02:26]} Rb8 {[%emt 0:02:06]} 25. Rac1 {[%emt 0:02:25]} Rb6 {[%emt 0:00:52]} 26. R6c2 {[%emt 0:09:44]} h6 {[%emt 0:03:48]} 27. h4 {[%emt 0:02:01]} Qb8 {[%emt 0:02:24]} 28. Rg1 {[%emt 0:04:53]} a5 {[%emt 0:05:23]} 29. Rcc1 {[%emt 0:02:07]} Be7 {[%emt 0:03:25]} 30. Rh1 {[%emt 0:01:52]} Qa7 {[%emt 0:07:40]} 31. g4 {[%emt 0:02:27]} a4 {[%emt 0:02:00]} 32. Qc2 {[%emt 0:01:19]} f5 {[%emt 0:01:19]} 33. gxf5 {[%emt 0:00:46]} exf5 {[%emt 0:00:01]} 34. Nc3 {[%emt 0:01:01]} Nxe3 {[%emt 0:00:33]} 35. Qe2 {[%emt 0:00:05]} Re6 {[%emt 0:00:33]} 36. Nxb5 {[%emt 0:00:34]} Ng4+ {[%emt 0:01:53]} 37. Kf1 {[%emt 0:01:09]} Qb6 {[%emt 0:00:50]} 38. Ne5 {[%emt 0:00:06]} Nxe5 {[%emt 0:02:10]} 39. dxe5 {[%emt 0:00:07]} Rd5 {[%emt 0:00:28]} 40. Nxc7 {[%emt 0:01:07]} Rdxe5 {[%emt 0:01:13]} 41. Qc4 {[%emt 0:30:12]} Qe3 {[%emt 0:32:02]} 42. Nxe6 {[%emt 0:12:41]} Qxf3+ {[%emt 0:03:01]} 43. Kg1 {[%emt 0:00:01]} Qg3+ {[%emt 0:00:00]} 44. Kf1 {[%emt 0:00:00]} Qf3+ {[%emt 0:00:00]} 1/2-1/2

[Event "Krakow Championship-B 2022"]
[Site "Krakow"]
[Date "2022.07.02"]
[Round "9.2"]
[White "Duncan, Patrick C M"]
[Black "Szczurek, Krzysztof"]
[Result "1/2-1/2"]
[ECO "A01"]
[WhiteElo "2013"]
[BlackElo "2151"]
[Annotator "RC"]
[PlyCount "64"]
[EventDate "2022.06.25"]
[EventType "swiss"]
[EventCountry "POL"]
[SourceTitle "playchess.com"]
[Source "ChessBase"]
[SourceQuality "1"]
[TimeControl "40/5400+30:1800+30"]

1. b3 {[%emt 0:00:08]} d5 {[%emt 0:00:13]} 2. Bb2 {[%emt 0:00:15]} c5 {[%emt 0:00:12]} 3. e3 {[%emt 0:00:27]} Nc6 {[%emt 0:00:07]} 4. Bb5 {[%emt 0:00:59]} Nf6 {[%emt 0:00:31]} 5. Bxc6+ {[%emt 0:01:50]} bxc6 {[%emt 0:00:08]} 6. Nf3 {[%emt 0:01:01]} Bg4 {[%emt 0:01:58]} 7. h3 {[%emt 0:00:27]} Bf5 {[%emt 0:02:32]} 8. d3 {[%emt 0:01:51]} h6 {[%emt 0:01:56]} 9. Ne5 {[%emt 0:03:31]} Qc7 {[%emt 0:00:36]} 10. Nd2 {[%emt 0:03:20]} e6 {[%emt 0:02:06]} 11. f4 {[%emt 0:03:49]} Bd6 {[%emt 0:02:51]} 12. Qe2 {[%emt 0:02:11]} O-O {[%emt 0:02:39]} 13. O-O-O {[%emt 0:03:07]} Nd7 {[%emt 0:00:35]} 14. Nxd7 {[%emt 0:01:39]} Qxd7 {[%emt 0:00:08]} 15. e4 {[%emt 0:09:44]} Bh7 {[%emt 0:00:23]} 16. e5 {[%emt 0:01:44]} Be7 {[%emt 0:00:40]} 17. g4 {[%emt 0:18:23]} a5 {[%emt 0:02:58]} 18. a4 {[%emt 0:00:16]} Rab8 {[%emt 0:14:05]} 19. h4 {[%emt 0:01:21]} Rb4 {[%emt 0:00:59]} 20. Rdf1 {[%emt 0:03:31]} Rfb8 {[%emt 0:01:26]} 21. Rh3 {[%emt 0:10:09]} Bf8 {[%emt 0:20:31]} 22. g5 {[%emt 0:04:04]} Bf5 {[%emt 0:04:16]} 23. Rg3 {[%emt 0:00:29]} g6 {[%emt 0:00:37]} 24. h5 {[%emt 0:02:29]} hxg5 {[%emt 0:00:57]} 25. fxg5 {[%emt 0:03:29]} Bg7 {[%emt 0:05:52]} 26. h6 {[%emt 0:07:21]} Bh8 {[%emt 0:00:05]} 27. Ba3 {[%emt 0:00:59]} Qc7 {[%emt 0:04:48]} 28. Re1 {[%emt 0:01:00]} Qb6 {[%emt 0:00:52]} 29. Qe3 {[%emt 0:02:03]} Kh7 {[%emt 0:02:39]} 30. Kd1 {[%emt 0:01:56]} Kg8 {[%emt 0:05:45]} 31. Kc1 {[%emt 0:00:47]} Kh7 {[%emt 0:00:05]} 32. Kd1 {[%emt 0:00:17]} Kg8 {[%emt 0:00:17]} 1/2-1/2

[Event "Krakow Championship-B 2022"]
[Site "Krakow"]
[Date "2022.07.02"]
[Round "9.3"]
[White "Hnatyshyn, Anastasiia"]
[Black "Czaplak, Lukasz"]
[Result "1-0"]
[ECO "C06"]
[WhiteElo "1890"]
[BlackElo "1905"]
[Annotator "NA RC"]
[PlyCount "71"]
[EventDate "2022.06.25"]
[EventType "swiss"]
[EventCountry "POL"]
[SourceTitle "playchess.com"]
[Source "ChessBase"]
[SourceQuality "1"]
[TimeControl "40/5400+30:1800+30"]

1. e4 {[%emt 0:00:03]} e6 {[%emt 0:00:06]} 2. d4 {[%emt 0:00:06]} d5 {[%emt 0:00:05]} 3. Nd2 {[%emt 0:00:05]} Nf6 {[%emt 0:00:42]} 4. e5 {[%emt 0:00:05]} Nfd7 {[%emt 0:00:02]} 5. Bd3 {[%emt 0:00:11]} c5 {[%emt 0:00:04]} 6. c3 {[%emt 0:00:05]} Nc6 {[%emt 0:00:02]} 7. Ne2 {[%emt 0:00:06]} cxd4 {[%emt 0:00:49]} 8. cxd4 {[%emt 0:00:06]} f6 {[%emt 0:02:51]} 9. exf6 {[%emt 0:00:07]} Nxf6 {[%emt 0:00:19]} 10. O-O {[%emt 0:00:09]} Bd6 {[%emt 0:00:14]} 11. Nf3 {[%emt 0:00:07]} O-O {[%emt 0:00:36]} 12. Bf4 {[%emt 0:00:25]} Bxf4 {[%emt 0:04:33]} 13. Nxf4 {[%emt 0:00:03]} Ne4 {[%emt 0:01:17]} 14. Nh5 {[%emt 0:01:39]} g6 {[%emt 0:03:51]} 15. Ng3 {[%emt 0:00:06]} Nxg3 {[%emt 0:01:20]} 16. hxg3 {[%emt 0:01:14]} Qb6 {[%emt 0:06:01]} 17. Bc2 {[%emt 0:04:44]} Qxb2 {[%emt 0:03:47]} 18. Rb1 {[%emt 0:00:54]} Qa3 {[%emt 0:05:59]} 19. Re1 {[%emt 0:05:44]} Qe7 {[%emt 0:06:57]} 20. Qd2 {[%emt 0:09:18]} b6 {[%emt 0:10:09]} 21. Bb3 {[%emt 0:11:07]} Qf6 {[%emt 0:03:13]} 22. Qe3 {[%emt 0:07:48]} Bd7 {[%emt 0:02:16]} 23. Ba4 {[%emt 0:02:40]} Rfe8 {[%emt 0:01:23]} 24. Bxc6 {[%emt 0:02:15]} Bxc6 {[%emt 0:00:03]} 25. Ne5 {[%emt 0:00:08]} Bb7 {[%emt 0:04:06]} 26. Rb3 {[%emt 0:04:33]} Rac8 {[%emt 0:03:34]} 27. Ng4 {[%emt 0:02:53]} Qg7 {[%emt 0:05:54]} 28. Qg5 {[%emt 0:00:30]} Rf8 {[%emt 0:03:50]} 29. Rxe6 {[%emt 0:03:30]} Rc7 {[%emt 0:01:38]} 30. Nf6+ {[%emt 0:02:30]} Kh8 {[%emt 0:00:37]} 31. Ne8 {[%emt 0:01:15]} Qxd4 {[%emt 0:05:22]} 32. Nxc7 {[%emt 0:00:40]} Qxf2+ {[%emt 0:00:12]} 33. Kh2 {[%emt 0:01:11]} Rf5 {[%emt 0:06:11]} 34. Re8+ {[%emt 0:00:12]} Kg7 {[%emt 0:00:06]} 35. Ne6+ {[%emt 0:00:04]} Kf7 {[%emt 0:00:17]} 36. Qe7# {[%emt 0:00:04]} 1-0

[Event "Krakow Championship-B 2022"]
[Site "Krakow"]
[Date "2022.07.02"]
[Round "9.4"]
[White "Stemmler, Fabian"]
[Black "Matuszczyk, Mateusz"]
[Result "1/2-1/2"]
[ECO "A45"]
[WhiteElo "2054"]
[BlackElo "1830"]
[Annotator "RC"]
[PlyCount "110"]
[EventDate "2022.06.25"]
[EventType "swiss"]
[EventCountry "POL"]
[SourceTitle "playchess.com"]
[Source "ChessBase"]
[SourceQuality "1"]
[TimeControl "40/5400+30:1800+30"]

1. d4 {[%emt 0:00:03]} Nf6 {[%emt 0:00:05]} 2. Bg5 {[%emt 0:00:06]} e6 {[%emt 0:02:12]} 3. e4 {[%emt 0:00:22]} d5 {[%emt 0:06:54]} 4. e5 {[%emt 0:00:21]} h6 {[%emt 0:00:04]} 5. Be3 {[%emt 0:00:14]} Nfd7 {[%emt 0:01:29]} 6. c3 {[%emt 0:00:49]} c5 {[%emt 0:00:09]} 7. f4 {[%emt 0:08:49]} Qb6 {[%emt 0:10:03]} 8. Qd2 {[%emt 0:04:26]} Nc6 {[%emt 0:04:56]} 9. Nf3 {[%emt 0:02:22]} Be7 {[%emt 0:02:14]} 10. Be2 {[%emt 0:16:51]} Qa5 {[%emt 0:02:26]} 11. dxc5 {[%emt 0:21:02]} Bxc5 {[%emt 0:01:24]} 12. b4 {[%emt 0:00:56]} Bxe3 {[%emt 0:00:05]} 13. Qxe3 {[%emt 0:00:05]} Qb6 {[%emt 0:06:09]} 14. Qxb6 {[%emt 0:06:40]} Nxb6 {[%emt 0:00:22]} 15. a4 {[%emt 0:03:00]} a5 {[%emt 0:08:46]} 16. b5 {[%emt 0:02:33]} Ne7 {[%emt 0:00:05]} 17. Nbd2 {[%emt 0:00:42]} O-O {[%emt 0:02:17]} 18. O-O {[%emt 0:02:11]} Nd7 {[%emt 0:08:10]} 19. Nb3 {[%emt 0:09:55]} b6 {[%emt 0:00:51]} 20. Nfd4 {[%emt 0:05:37]} Bb7 {[%emt 0:00:27]} 21. Rac1 {[%emt 0:00:53]} Rac8 {[%emt 0:05:38]} 22. c4 {[%emt 0:02:36]} g5 {[%emt 0:05:50]} 23. g3 {[%emt 0:02:10]} Kh8 {[%emt 0:02:49]} 24. f5 {[%emt 0:01:08]} dxc4 {[%emt 0:04:55]} 25. fxe6 {[%emt 0:03:06]} Nxe5 {[%emt 0:00:53]} 26. Nd2 {[%emt 0:00:54]} Bd5 {[%emt 0:06:00]} 27. exf7 {[%emt 0:01:33]} Rxf7 {[%emt 0:00:32]} 28. Rxf7 {[%emt 0:00:23]} Bxf7 {[%emt 0:00:05]} 29. Ne4 {[%emt 0:00:52]} Bd5 {[%emt 0:03:20]} 30. Nc3 {[%emt 0:00:34]} Bb7 {[%emt 0:01:00]} 31. Rf1 {[%emt 0:01:10]} Nd5 {[%emt 0:03:43]} 32. Nxd5 {[%emt 0:01:20]} Bxd5 {[%emt 0:00:05]} 33. Rf5 {[%emt 0:00:28]} Re8 {[%emt 0:00:10]} 34. Bh5 {[%emt 0:00:56]} Re7 {[%emt 0:00:17]} 35. Rf8+ {[%emt 0:01:18]} Kh7 {[%emt 0:02:23]} 36. Bd1 {[%emt 0:00:53]} Nd3 {[%emt 0:00:47]} 37. Rf1 {[%emt 0:00:32]} Nb4 {[%emt 0:05:00]} 38. Kf2 {[%emt 0:00:49]} Rf7+ {[%emt 0:02:17]} 39. Kg1 {[%emt 0:00:01]} Rxf1+ {[%emt 0:00:41]} 40. Kxf1 {[%emt 0:00:03]} c3 {[%emt 0:00:27]} 41. Bb3 {[%emt 0:05:12]} Bxb3 {[%emt 0:09:48]} 42. Nxb3 {[%emt 0:00:12]} Kg6 {[%emt 0:01:35]} 43. Ke2 {[%emt 0:14:39]} Kf5 {[%emt 0:00:33]} 44. Nd4+ {[%emt 0:03:59]} Ke4 {[%emt 0:00:13]} 45. Nc6 {[%emt 0:00:32]} Kd5 {[%emt 0:07:41]} 46. Ne7+ {[%emt 0:06:31]} Kc4 {[%emt 0:00:08]} 47. Nf5 {[%emt 0:01:43]} Kb3 {[%emt 0:01:17]} 48. h4 {[%emt 0:00:50]} c2 {[%emt 0:02:32]} 49. Nd4+ {[%emt 0:00:40]} Kb2 {[%emt 0:01:20]} 50. Nxc2 {[%emt 0:00:25]} Kxc2 {[%emt 0:01:48]} 51. Kf3 {[%emt 0:01:37]} Kb3 {[%emt 0:00:51]} 52. hxg5 {[%emt 0:00:13]} hxg5 {[%emt 0:00:05]} 53. Kg4 {[%emt 0:00:04]} Kxa4 {[%emt 0:00:14]} 54. Kxg5 {[%emt 0:00:07]} Kxb5 {[%emt 0:00:06]} 55. g4 {[%emt 0:00:14]} a4 {[%emt 0:00:23]} 1/2-1/2

[Event "Krakow Championship-B 2022"]
[Site "Krakow"]
[Date "2022.07.02"]
[Round "9.5"]
[White "Kulesza, Andrzej"]
[Black "Palacki, Rafal"]
[Result "1-0"]
[ECO "B96"]
[WhiteElo "1998"]
[BlackElo "1810"]
[Annotator "RC"]
[PlyCount "129"]
[EventDate "2022.06.25"]
[EventType "swiss"]
[EventCountry "POL"]
[SourceTitle "playchess.com"]
[Source "ChessBase"]
[SourceQuality "1"]
[TimeControl "40/5400+30:1800+30"]

1. e4 {[%emt 0:00:57]} c5 {[%emt 0:00:03]} 2. Nf3 {[%emt 0:01:06]} d6 {[%emt 0:00:02]} 3. d4 {[%emt 0:01:42]} cxd4 {[%emt 0:00:04]} 4. Nxd4 {[%emt 0:00:06]} Nf6 {[%emt 0:00:02]} 5. Nc3 {[%emt 0:01:28]} a6 {[%emt 0:00:02]} 6. Bg5 {[%emt 0:02:24]} e6 {[%emt 0:00:06]} 7. f4 {[%emt 0:01:33]} h6 {[%emt 0:00:01]} 8. Bh4 {[%emt 0:01:53]} Qb6 {[%emt 0:00:03]} 9. Qd2 {[%emt 0:02:16]} Qxb2 {[%emt 0:01:06]} 10. Rb1 {[%emt 0:00:28]} Qa3 {[%emt 0:00:09]} 11. e5 {[%emt 0:01:31]} dxe5 {[%emt 0:00:47]} 12. fxe5 {[%emt 0:00:25]} Nfd7 {[%emt 0:00:23]} 13. Ne4 {[%emt 0:03:06]} Qxa2 {[%emt 0:02:08]} 14. Rd1 {[%emt 0:01:28]} Qd5 {[%emt 0:01:11]} 15. Qe3 {[%emt 0:01:35]} Qxe5 {[%emt 0:03:09]} 16. Be2 {[%emt 0:02:06]} Bc5 {[%emt 0:05:14]} 17. c3 {[%emt 0:04:21]} O-O {[%emt 0:05:55]} 18. Bg3 {[%emt 0:03:56]} Bxd4 {[%emt 0:00:30]} 19. Rxd4 {[%emt 0:01:14]} Qa5 {[%emt 0:00:55]} 20. Bd6 {[%emt 0:03:33]} Nc6 {[%emt 0:01:49]} 21. Rd2 {[%emt 0:15:21]} Rd8 {[%emt 0:02:18]} 22. O-O {[%emt 0:02:49]} f5 {[%emt 0:05:37]} 23. Nf2 {[%emt 0:12:00]} Nf6 {[%emt 0:01:36]} 24. g4 {[%emt 0:05:51]} Nd5 {[%emt 0:02:25]} 25. Qg3 {[%emt 0:00:15]} Qxc3 {[%emt 0:07:04]} 26. Rd3 {[%emt 0:00:23]} f4 {[%emt 0:00:27]} 27. Bxf4 {[%emt 0:06:14]} Nxf4 {[%emt 0:01:03]} 28. Rxd8+ {[%emt 0:00:00]} Nxd8 {[%emt 0:00:00]} 29. Qxf4 {[%emt 0:00:05]} e5 {[%emt 0:10:48]} 30. Qe4 {[%emt 0:00:09]} Ne6 {[%emt 0:00:39]} 31. Rd1 {[%emt 0:01:23]} Qc7 {[%emt 0:02:28]} 32. Qd5 {[%emt 0:04:15]} Kf8 {[%emt 0:08:33]} 33. Bc4 {[%emt 0:06:40]} Ke7 {[%emt 0:04:04]} 34. Ne4 {[%emt 0:02:43]} Qb6+ {[%emt 0:03:15]} 35. Kh1 {[%emt 0:03:33]} Qc6 {[%emt 0:01:06]} 36. Qd3 {[%emt 0:00:18]} Bd7 {[%emt 0:15:16]} 37. Bd5 {[%emt 0:02:41]} Qb6 {[%emt 0:02:31]} 38. Qa3+ {[%emt 0:00:32]} Kf7 {[%emt 0:04:28]} 39. Rf1+ {[%emt 0:00:31]} Kg8 {[%emt 0:06:30]} 40. Qe7 {[%emt 0:01:03]} Rd8 {[%emt 0:02:22]} 41. Nc5 {[%emt 0:32:57]} Kh8 {[%emt 0:32:56]} 42. Nxe6 {[%emt 0:03:26]} Bxe6 {[%emt 0:01:01]} 43. Qxe6 {[%emt 0:00:09]} Qxe6 {[%emt 0:00:00]} 44. Bxe6 {[%emt 0:00:00]} Rd6 {[%emt 0:00:00]} 45. Bc8 {[%emt 0:00:00]} b5 {[%emt 0:00:00]} 46. Ra1 {[%emt 0:00:00]} b4 {[%emt 0:00:00]} 47. Rxa6 {[%emt 0:00:00]} Rxa6 {[%emt 0:00:00]} 48. Bxa6 {[%emt 0:00:00]} g6 {[%emt 0:00:00]} 49. Bd3 {[%emt 0:00:00]} Kg7 {[%emt 0:00:00]} 50. Kg2 {[%emt 0:00:00]} Kf6 {[%emt 0:00:00]} 51. h4 {[%emt 0:00:00]} g5 {[%emt 0:00:00]} 52. h5 {[%emt 0:00:00]} e4 {[%emt 0:00:00]} 53. Bxe4 {[%emt 0:00:00]} Ke5 {[%emt 0:00:00]} 54. Kf3 {[%emt 0:00:00]} Kd4 {[%emt 0:00:00]} 55. Bf5 {[%emt 0:00:00]} b3 {[%emt 0:00:00]} 56. Ke2 {[%emt 0:00:00]} Kc3 {[%emt 0:00:00]} 57. Ke3 {[%emt 0:00:00]} Kb2 {[%emt 0:00:53]} 58. Kd4 {[%emt 0:00:00]} Kc1 {[%emt 0:00:09]} 59. Ke5 {[%emt 0:00:00]} Kd2 {[%emt 0:00:19]} 60. Kf6 {[%emt 0:00:00]} Ke3 {[%emt 0:00:08]} 61. Kg6 {[%emt 0:00:00]} b2 {[%emt 0:00:12]} 62. Kxh6 {[%emt 0:00:00]} Kf4 {[%emt 0:00:04]} 63. Kg6 {[%emt 0:00:00]} b1=Q {[%emt 0:00:09]} 64. Bxb1 {[%emt 0:00:00]} Kxg4 {[%emt 0:00:08]} 65. h6 {[%emt 0:00:00]} 1-0

[Event "Krakow Championship-B 2022"]
[Site "Krakow"]
[Date "2022.07.02"]
[Round "9.6"]
[White "Maciejewski, Kamil"]
[Black "Malik, Maciej"]
[Result "1/2-1/2"]
[ECO "A04"]
[WhiteElo "1939"]
[BlackElo "1984"]
[Annotator "RC"]
[PlyCount "201"]
[EventDate "2022.06.25"]
[EventType "swiss"]
[EventCountry "POL"]
[SourceTitle "playchess.com"]
[Source "ChessBase"]
[SourceQuality "1"]
[TimeControl "40/5400+30:1800+30"]

1. Nf3 {[%emt 0:00:04]} g6 {[%emt 0:01:07]} 2. g3 {[%emt 0:00:53]} Bg7 {[%emt 0:00:40]} 3. d4 {[%emt 0:01:58]} d6 {[%emt 0:00:39]} 4. b3 {[%emt 0:03:02]} Nf6 {[%emt 0:01:33]} 5. Bb2 {[%emt 0:00:14]} Nbd7 {[%emt 0:01:19]} 6. Bg2 {[%emt 0:00:21]} O-O {[%emt 0:01:01]} 7. O-O {[%emt 0:00:07]} e5 {[%emt 0:00:42]} 8. dxe5 {[%emt 0:00:07]} Ng4 {[%emt 0:00:58]} 9. c4 {[%emt 0:01:33]} Ngxe5 {[%emt 0:00:29]} 10. Nxe5 {[%emt 0:00:52]} Nxe5 {[%emt 0:01:29]} 11. Nc3 {[%emt 0:02:02]} Rb8 {[%emt 0:03:23]} 12. Qd2 {[%emt 0:03:11]} Bd7 {[%emt 0:02:29]} 13. Nd5 {[%emt 0:07:08]} Bc6 {[%emt 0:12:49]} 14. f4 {[%emt 0:05:34]} Nd7 {[%emt 0:01:54]} 15. Bxg7 {[%emt 0:09:29]} Kxg7 {[%emt 0:00:15]} 16. Qd4+ {[%emt 0:05:37]} f6 {[%emt 0:01:57]} 17. Qxa7 {[%emt 0:05:46]} Nc5 {[%emt 0:01:50]} 18. Qa5 {[%emt 0:02:05]} Bxd5 {[%emt 0:00:55]} 19. cxd5 {[%emt 0:05:13]} Qe7 {[%emt 0:00:30]} 20. Qd2 {[%emt 0:06:18]} Rfe8 {[%emt 0:02:28]} 21. Bf3 {[%emt 0:05:20]} Ra8 {[%emt 0:01:56]} 22. Rac1 {[%emt 0:02:11]} Qe3+ {[%emt 0:13:44]} 23. Qxe3 {[%emt 0:00:08]} Rxe3 {[%emt 0:00:04]} 24. Rc2 {[%emt 0:01:40]} f5 {[%emt 0:07:58]} 25. Rfc1 {[%emt 0:01:57]} Kf6 {[%emt 0:04:00]} 26. Kf2 {[%emt 0:01:29]} Re7 {[%emt 0:00:29]} 27. b4 {[%emt 0:02:36]} Na6 {[%emt 0:00:03]} 28. a3 {[%emt 0:01:00]} Ra7 {[%emt 0:08:24]} 29. e3 {[%emt 0:04:23]} b5 {[%emt 0:06:06]} 30. Be2 {[%emt 0:01:37]} Rb7 {[%emt 0:00:01]} 31. Rb2 {[%emt 0:03:47]} Nb8 {[%emt 0:00:28]} 32. Bd3 {[%emt 0:02:07]} Kf7 {[%emt 0:02:20]} 33. Rbc2 {[%emt 0:01:42]} Ke8 {[%emt 0:00:56]} 34. h3 {[%emt 0:02:36]} Kd8 {[%emt 0:01:32]} 35. g4 {[%emt 0:01:26]} fxg4 {[%emt 0:00:31]} 36. hxg4 {[%emt 0:00:14]} Nd7 {[%emt 0:00:02]} 37. g5 {[%emt 0:01:53]} Nf8 {[%emt 0:04:43]} 38. Kf3 {[%emt 0:02:59]} Rf7 {[%emt 0:01:19]} 39. e4 Nd7 {[%emt 0:00:37]} 40. Kg4 {[%emt 0:06:02]} Re7 {[%emt 0:00:19]} 41. Rh1 {[%emt 0:33:46]} Ke8 {[%emt 0:30:29]} 42. Rch2 {[%emt 0:00:00]} Nf8 {[%emt 0:00:00]} 43. Re1 {[%emt 0:00:00]} Nd7 {[%emt 0:00:00]} 44. Rhe2 {[%emt 0:00:00]} Kf8 {[%emt 0:00:00]} 45. e5 {[%emt 0:00:00]} dxe5 {[%emt 0:00:00]} 46. fxe5 {[%emt 0:00:00]} Rb8 {[%emt 0:00:00]} 47. e6 {[%emt 0:00:00]} Nb6 {[%emt 0:00:00]} 48. Bxb5 {[%emt 0:00:00]} Nxd5 {[%emt 0:00:00]} 49. Bc4 {[%emt 0:00:00]} Nb6 {[%emt 0:00:00]} 50. Rf2+ {[%emt 0:00:00]} Kg7 {[%emt 0:00:00]} 51. Bb3 {[%emt 0:00:00]} Nc8 {[%emt 0:00:00]} 52. Rf7+ {[%emt 0:00:00]} Rxf7 {[%emt 0:00:00]} 53. exf7 {[%emt 0:00:00]} Nd6 {[%emt 0:00:00]} 54. Re7 {[%emt 0:00:00]} c6 {[%emt 0:00:00]} 55. Rc7 {[%emt 0:00:00]} Nb5 {[%emt 0:00:00]} 56. f8=Q+ {[%emt 0:02:52]} Kxf8 {[%emt 0:00:00]} 57. Rxh7 {[%emt 0:00:07]} Rb6 {[%emt 0:00:00]} 58. Rh8+ {[%emt 0:00:29]} Ke7 {[%emt 0:00:00]} 59. Ra8 {[%emt 0:00:46]} Nxa3 {[%emt 0:00:00]} 60. Rxa3 {[%emt 0:00:09]} Rxb4+ {[%emt 0:00:00]} 61. Kf3 {[%emt 0:01:22]} Rb5 {[%emt 0:00:00]} 62. Ba4 {[%emt 0:02:42]} Rxg5 {[%emt 0:00:00]} 63. Bxc6 {[%emt 0:00:15]} Re5 {[%emt 0:00:00]} 64. Be4 {[%emt 0:00:59]} Kf6 {[%emt 0:00:00]} 65. Kf4 {[%emt 0:00:39]} Re6 {[%emt 0:00:00]} 66. Rg3 {[%emt 0:00:41]} Kg7 {[%emt 0:00:00]} 67. Rg4 {[%emt 0:00:53]} Kh6 {[%emt 0:00:00]} 68. Rh4+ {[%emt 0:00:38]} Kg7 {[%emt 0:00:00]} 69. Ke3 {[%emt 0:00:49]} Rd6 {[%emt 0:00:00]} 70. Bd3 {[%emt 0:00:30]} Kf6 {[%emt 0:00:00]} 71. Rg4 {[%emt 0:00:19]} Kg7 {[%emt 0:00:00]} 72. Ke4 {[%emt 0:00:43]} Kf6 {[%emt 0:00:00]} 73. Rg3 {[%emt 0:00:31]} Re6+ {[%emt 0:00:00]} 74. Kd5 {[%emt 0:00:26]} Re5+ {[%emt 0:00:00]} 75. Kd6 {[%emt 0:00:10]} Rg5 {[%emt 0:00:00]} 76. Rf3+ {[%emt 0:00:13]} Kg7 {[%emt 0:00:00]} 77. Ke6 {[%emt 0:00:20]} Rg1 {[%emt 0:00:00]} 78. Rf7+ {[%emt 0:00:49]} Kh6 {[%emt 0:00:00]} 79. Be4 {[%emt 0:00:19]} Rg4 {[%emt 0:01:29]} 80. Ke5 {[%emt 0:00:27]} Rg5+ {[%emt 0:00:14]} 81. Kf6 {[%emt 0:01:50]} Rg4 {[%emt 0:00:09]} 82. Re7 {[%emt 0:00:29]} Rf4+ {[%emt 0:00:14]} 83. Ke5 {[%emt 0:00:02]} Rf1 {[%emt 0:01:15]} 84. Re6 {[%emt 0:00:18]} Rg1 {[%emt 0:00:07]} 85. Kf6 {[%emt 0:00:16]} Rf1+ {[%emt 0:00:32]} 86. Ke7 {[%emt 0:00:04]} Rg1 {[%emt 0:00:12]} 87. Kf7 {[%emt 0:00:14]} Rf1+ {[%emt 0:00:35]} 88. Kg8 {[%emt 0:00:06]} Rg1 {[%emt 0:00:22]} 89. Rf6 {[%emt 0:00:49]} Kh5 {[%emt 0:00:30]} 90. Kg7 {[%emt 0:00:14]} g5 {[%emt 0:00:36]} 91. Rh6+ {[%emt 0:01:46]} Kg4 {[%emt 0:00:05]} 92. Kf6 {[%emt 0:00:41]} Kf4 {[%emt 0:00:12]} 93. Bf5 {[%emt 0:00:16]} Ra1 {[%emt 0:01:15]} 94. Rh2 {[%emt 0:00:38]} Ra6+ {[%emt 0:00:21]} 95. Be6 {[%emt 0:00:06]} g4 {[%emt 0:01:56]} 96. Rh4 {[%emt 0:01:33]} Kf3 {[%emt 0:00:02]} 97. Ke5 {[%emt 0:00:27]} Rxe6+ {[%emt 0:02:31]} 98. Kxe6 {[%emt 0:00:36]} g3 {[%emt 0:00:03]} 99. Kf5 {[%emt 0:00:09]} g2 {[%emt 0:00:05]} 100. Rg4 {[%emt 0:00:28]} Kf2 {[%emt 0:00:03]} 101. Ke4 1/2-1/2